bitfinex/quotes_BTCUSD_20240620
["timestamp","ask_amount","ask_price","bid_price","bid_amount"]
[1718921111873,0.50275484,65219.0,65212.0,0.06610148]
[1718921112076,0.50275484,65219.0,65215.0,0.1]
[1718921112412,0.0746,65216.0,65215.0,0.1585]
[1718921112971,0.08415125,65216.0,65215.0,0.1585]
[1718921113178,0.08415125,65216.0,65209.0,0.2884]
[1718921113379,0.0746,65210.0,65209.0,0.2884]
[1718921113737,0.08415125,65210.0,65205.0,0.35450148]
[1718921113935,0.0746,65206.0,65205.0,0.35450148]
[1718921114075,0.08415125,65206.0,65205.0,0.2884]
[1718921114267,0.08415125,65206.0,65205.0,0.001]
[1718921114674,0.08415125,65206.0,65199.0,0.3075]
[1718921114877,0.07628172,65218.0,65199.0,0.3075]
[1718921114878,0.0746,65200.0,65199.0,0.3075]
[1718921115084,0.0746,65200.0,65195.0,0.04609128]
[1718921115085,0.09116822,65200.0,65195.0,0.04609128]
[1718921115283,0.0746,65196.0,65195.0,0.03009175]
[1718921115507,0.09116822,65196.0,65195.0,0.03009175]
[1718921115816,0.09116822,65196.0,65192.0,0.000946]
[1718921116040,0.01656822,65195.0,65194.0,0.08610148]
[1718921116238,0.01656822,65195.0,65194.0,0.47820148]
[1718921116755,0.09116822,65195.0,65194.0,0.47820148]
[1718921117552,0.01656822,65195.0,65194.0,0.47820148]
[1718921117749,0.02256822,65195.0,65194.0,0.47920148]
[1718921118139,0.03070307,65195.0,65194.0,0.47920148]
[1718921118660,0.03470307,65195.0,65194.0,0.6317626]
[1718921118936,0.03470307,65195.0,65194.0,0.6417626]
[1718921119341,0.03470307,65195.0,65194.0,0.6317626]
[1718921119725,0.10330307,65195.0,65194.0,0.6307626]
[1718921120097,0.03470307,65195.0,65194.0,0.6317626]
[1718921120512,0.02870307,65195.0,65194.0,0.6107626]
[1718921120712,0.02870307,65195.0,65194.0,0.6307626]
[1718921120912,0.03070307,65195.0,65194.0,0.6307626]
[1718921121155,0.02670307,65195.0,65194.0,0.6307626]
[1718921121373,0.02470307,65195.0,65194.0,0.6307626]
[1718921121517,0.02970307,65195.0,65194.0,0.6307626]
[1718921121717,0.03170307,65195.0,65194.0,0.6307626]
[1718921121915,0.02670307,65195.0,65194.0,0.6307626]
[1718921122210,0.02670307,65195.0,65194.0,0.2921]
[1718921122324,0.02670307,65195.0,65193.0,0.100946]
[1718921122325,0.02770307,65195.0,65193.0,0.100946]
[1718921122542,0.03493338,65194.0,65193.0,0.000946]
[1718921123146,0.09930307,65194.0,65193.0,0.000946]
[1718921124164,0.0746,65194.0,65193.0,0.000946]
[1718921124364,0.09873281,65194.0,65193.0,0.000946]
[1718921124566,0.02413281,65194.0,65193.0,0.3406086]
[1718921124767,0.09873281,65194.0,65193.0,0.3406086]
[1718921124981,0.09973281,65194.0,65193.0,0.3406086]
[1718921125578,0.02513281,65194.0,65193.0,0.70160223]
[1718921125694,0.02513281,65194.0,65193.0,0.6312086]
[1718921125890,0.02513281,65194.0,65193.0,0.6302086]
[1718921126369,0.02713281,65194.0,65193.0,0.6302086]
[1718921126550,0.02613281,65194.0,65193.0,0.6302086]
[1718921127108,0.02913281,65194.0,65193.0,0.6302086]
[1718921127313,0.005,65194.0,65193.0,0.6302086]
[1718921127430,0.002,65194.0,65193.0,0.6302086]
[1718921127633,0.02777014,65194.0,65193.0,0.6302086]
[1718921128198,0.02577014,65194.0,65193.0,0.6302086]
[1718921128398,0.02477014,65194.0,65193.0,0.6312086]
[1718921128739,0.02477014,65194.0,65193.0,0.6302086]
[1718921129292,0.02477014,65194.0,65193.0,0.6242086]
[1718921129838,0.02477014,65194.0,65193.0,0.6262086]
[1718921130488,0.02367119,65194.0,65193.0,0.6242086]
[1718921130688,0.04402093,65200.0,65199.0,0.08610148]
[1718921130930,0.02306098,65200.0,65199.0,0.08610148]
[1718921131544,0.04259615,65200.0,65199.0,0.08610148]
[1718921133344,0.05059615,65200.0,65199.0,0.08710148]
[1718921133551,0.05059615,65200.0,65199.0,0.4709626]
[1718921133552,0.02753517,65200.0,65199.0,0.4709626]
[1718921133706,0.05071364,65200.0,65199.0,0.4709626]
[1718921133955,0.02317847,65200.0,65199.0,0.4699626]
[1718921134160,0.04605863,65205.0,65203.0,0.08610148]
[1718921134161,0.02317837,65204.0,65203.0,0.08610148]
[1718921134562,0.04277463,65204.0,65203.0,0.3386626]
[1718921134766,0.04277463,65204.0,65203.0,0.4964626]
[1718921135847,0.05277463,65204.0,65203.0,0.4974626]
[1718921136532,0.06377463,65204.0,65203.0,0.4984626]
[1718921136745,0.0633063,65204.0,65203.0,0.4984626]
[1718921139734,0.04059626,65204.0,65203.0,0.4984626]
[1718921139940,0.0629666,65204.0,65203.0,0.4984626]
[1718921143078,0.06291067,65204.0,65203.0,0.4984626]
[1718921146272,0.06280807,65204.0,65203.0,0.4984626]
[1718921146446,0.06366807,65204.0,65203.0,0.4984626]
[1718921149416,0.06402156,65204.0,65203.0,0.4984626]
[1718921152649,0.063442,65204.0,65203.0,0.4984626]
[1718921156522,0.04145626,65204.0,65203.0,0.4984626]
[1718921156718,0.06335247,65204.0,65203.0,0.4984626]
[1718921157460,0.06335247,65204.0,65203.0,0.4784626]
[1718921157781,0.06335247,65204.0,65203.0,0.4984626]
[1718921158542,0.06327173,65204.0,65203.0,0.4984626]
[1718921159143,0.06305433,65204.0,65203.0,0.4984626]
[1718921160829,0.13775433,65204.0,65203.0,0.4984626]
[1718921161004,0.11823881,65204.0,65203.0,0.4984626]
[1718921161146,0.13502899,65204.0,65203.0,0.4984626]
[1718921161568,0.06032899,65204.0,65203.0,0.4984626]
[1718921161785,0.13502899,65204.0,65203.0,0.4984626]
[1718921161999,0.06032899,65204.0,65203.0,0.6355626]
[1718921162604,0.06032899,65204.0,65203.0,0.6455626]
[1718921163586,0.05032899,65204.0,65203.0,0.6445626]
[1718921163786,0.03932899,65204.0,65203.0,0.6435626]
[1718921164049,0.05032899,65204.0,65203.0,0.6445626]
[1718921164509,0.05032899,65204.0,65203.0,0.71664703]
[1718921165347,0.02865018,65204.0,65203.0,0.6445626]
[1718921165563,0.05143436,65204.0,65203.0,0.6445626]
[1718921166187,0.06792167,65204.0,65203.0,0.6445626]
[1718921166916,0.06792167,65204.0,65203.0,0.6345626]
[1718921167068,0.06792167,65204.0,65203.0,0.6445626]
[1718921167401,0.05143436,65204.0,65203.0,0.6445626]
[1718921167567,0.05143436,65204.0,65203.0,0.6345626]
[1718921167917,0.05143436,65204.0,65203.0,0.6445626]
[1718921168545,0.04889965,65204.0,65203.0,0.6445626]
[1718921171762,0.04892587,65204.0,65203.0,0.6445626]
[1718921172578,0.04892587,65204.0,65203.0,0.6345626]
[1718921173143,0.06542153,65204.0,65203.0,0.6345626]
[1718921174212,0.06542153,65204.0,65203.0,0.6145626]
[1718921174411,0.06542153,65204.0,65203.0,0.6345626]
[1718921174916,0.06374325,65204.0,65203.0,0.6345626]
[1718921177867,0.02865018,65204.0,65203.0,0.6345626]
[1718921178071,0.04564133,65204.0,65203.0,0.101]
[1718921178419,0.06216361,65204.0,65203.0,0.05430521]
[1718921179441,0.06216361,65204.0,65203.0,0.05525121]
[1718921181065,0.06248928,65204.0,65203.0,0.05525121]
[1718921182326,0.08102463,65204.0,65203.0,0.05525121]
[1718921182736,0.13718928,65204.0,65203.0,0.05525121]
[1718921184302,0.02808533,65211.0,65203.0,0.05525121]
[1718921184303,0.03319606,65210.0,65203.0,0.05525121]
[1718921184503,0.08566893,65204.0,65203.0,0.05525121]
[1718921184708,0.0747,65204.0,65203.0,0.05525121]
[1718921184910,0.08566559,65204.0,65203.0,0.05525121]
[1718921185683,0.08566559,65204.0,65203.0,0.05625121]
[1718921185883,0.08566559,65204.0,65203.0,0.05425121]
[1718921186283,0.0747,65204.0,65203.0,0.05525121]
[1718921186743,0.08566559,65204.0,65203.0,0.05425121]
[1718921187121,0.08966559,65204.0,65203.0,0.05425121]
[1718921187704,0.09366559,65204.0,65203.0,0.05425121]
[1718921193174,0.09366559,65204.0,65203.0,0.05425121]
[1718921194243,0.10677983,65204.0,65203.0,0.05425121]
[1718921195277,0.10677983,65204.0,65203.0,0.05145534]
[1718921196744,0.09581424,65204.0,65203.0,0.05145534]
[1718921197161,0.10677557,65204.0,65203.0,0.05145534]
[1718921199084,0.13386732,65204.0,65203.0,0.05145534]
[1718921199603,0.17653597,65204.0,65203.0,0.05145534]
[1718921203129,0.16342173,65204.0,65203.0,0.05145534]
[1718921203330,0.17731727,65204.0,65203.0,0.05145534]
[1718921209604,0.17706484,65204.0,65203.0,0.05145534]
[1718921210439,0.17735438,65204.0,65203.0,0.05145534]
[1718921212627,0.17730861,65204.0,65203.0,0.05145534]
[1718921213343,0.10260861,65204.0,65203.0,0.05145534]
[1718921213553,0.17730861,65204.0,65203.0,0.05145534]
[1718921215311,0.10260861,65204.0,65203.0,0.05145534]
[1718921215514,0.17730861,65204.0,65203.0,0.21125534]
[1718921215739,0.16342173,65204.0,65203.0,0.21125534]
[1718921215951,0.17784334,65204.0,65203.0,0.21125534]
[1718921216724,0.16342173,65204.0,65203.0,0.21125534]
[1718921216929,0.17938821,65204.0,65203.0,0.21125534]
[1718921219063,0.17946256,65204.0,65203.0,0.21125534]
[1718921222260,0.17932798,65204.0,65203.0,0.21125534]
[1718921225433,0.17762778,65204.0,65203.0,0.21125534]
[1718921231497,0.17762778,65204.0,65203.0,0.20565678]
[1718921231706,0.16342173,65204.0,65203.0,0.20565678]
[1718921231907,0.17770645,65204.0,65203.0,0.20565678]
[1718921232360,0.10300645,65204.0,65203.0,0.20565678]
[1718921232524,0.17770645,65204.0,65203.0,0.20565678]
[1718921235092,0.17770645,65204.0,65203.0,0.20184478]
[1718921235093,0.17812441,65204.0,65203.0,0.20184478]
[1718921235492,0.17812441,65204.0,65203.0,0.19802036]
[1718921236315,0.17812441,65204.0,65203.0,0.19419357]
[1718921237342,0.17812441,65204.0,65203.0,0.19036679]
[1718921238106,0.16342173,65204.0,65203.0,0.19036679]
[1718921238321,0.17797334,65204.0,65203.0,0.19036679]
[1718921241008,0.17797334,65204.0,65203.0,0.25646827]
[1718921241428,0.16342173,65204.0,65203.0,0.25646827]
[1718921241629,0.1780008,65204.0,65203.0,0.25646827]
[1718921241933,0.1788608,65204.0,65203.0,0.25646827]
[1718921243548,0.1788608,65204.0,65203.0,0.25492855]
[1718921243744,0.1788608,65204.0,65203.0,0.25197328]
[1718921244348,0.1788608,65204.0,65203.0,0.1858718]
[1718921244854,0.17879,65204.0,65203.0,0.1858718]
[1718921246937,0.17879,65204.0,65203.0,0.27197328]
[1718921247100,0.10409,65204.0,65203.0,0.27197328]
[1718921247335,0.09312867,65204.0,65203.0,0.27197328]
[1718921247548,0.17887471,65204.0,65203.0,0.27197328]
[1718921247751,0.18024917,65204.0,65203.0,0.27197328]
[1718921250245,0.10554917,65204.0,65203.0,0.27197328]
[1718921250455,0.18024917,65204.0,65203.0,0.27197328]
[1718921251221,0.18129208,65204.0,65203.0,0.27197328]
[1718921254031,0.18129208,65204.0,65203.0,0.25197328]
[1718921254304,0.16974984,65204.0,65203.0,0.25197328]
[1718921255146,0.1807916,65204.0,65203.0,0.25197328]
[1718921255348,0.1807916,65204.0,65203.0,0.1858718]
[1718921255776,0.16974984,65204.0,65203.0,0.1858718]
[1718921256097,0.1807916,65204.0,65203.0,0.1858718]
[1718921256525,0.16610432,65216.0,65204.0,0.0251258]
[1718921256730,0.0747,65205.0,65204.0,0.06432115]
[1718921258054,0.0747,65205.0,65204.0,0.0261258]
[1718921258283,0.0747,65205.0,65204.0,0.0271258]
[1718921258497,0.0747,65205.0,65204.0,0.0261258]
[1718921258708,0.0797,65205.0,65204.0,0.0261258]
[1718921258895,0.0797,65205.0,65204.0,0.0251258]
[1718921259206,0.0807,65205.0,65204.0,0.0251258]
[1718921260411,0.0807,65205.0,65204.0,0.3303258]
[1718921265381,0.0807,65205.0,65204.0,0.39642728]
[1718921266586,0.09024978,65205.0,65204.0,0.39642728]
[1718921267004,0.09024979,65205.0,65204.0,0.39642728]
[1718921267528,0.01554979,65205.0,65204.0,0.5689884]
[1718921267873,0.04345048,65205.0,65204.0,0.5689884]
[1718921268084,0.01554979,65205.0,65204.0,0.5689884]
[1718921268459,0.02288519,65205.0,65204.0,0.5689884]
[1718921270159,0.0133354,65205.0,65204.0,0.5689884]
[1718921270325,0.02288606,65205.0,65204.0,0.5689884]
[1718921270662,0.02288606,65205.0,65204.0,0.58653823]
[1718921273464,0.02288597,65205.0,65204.0,0.58653823]
[1718921273668,0.02288597,65205.0,65204.0,0.58748423]
[1718921276145,0.01555057,65205.0,65204.0,0.59748423]
[1718921276681,0.01555237,65205.0,65204.0,0.59748423]
[1718921276896,0.006,65205.0,65204.0,0.69748423]
[1718921277092,0.04506876,65209.0,65208.0,0.0451258]
[1718921277295,0.04506876,65209.0,65208.0,0.63811142]
[1718921277497,0.0747,65214.0,65213.0,0.42602728]
[1718921277757,0.0747,65214.0,65213.0,0.5785884]
[1718921279992,0.11940414,65214.0,65213.0,0.5785884]
[1718921280252,0.04470414,65214.0,65213.0,0.5685884]
[1718921280403,0.11940414,65214.0,65213.0,0.5785884]
[1718921280607,0.0747,65214.0,65213.0,0.64319954]
[1718921281002,0.0747,65214.0,65213.0,0.63319954]
[1718921281190,0.0747,65214.0,65213.0,0.63419954]
[1718921282016,0.02885171,65216.0,65215.0,0.41302728]
[1718921282224,0.02885171,65216.0,65215.0,0.62970835]
[1718921282426,0.10355171,65216.0,65215.0,0.62970835]
[1718921282862,0.11310454,65216.0,65215.0,0.62970835]
[1718921283348,0.15818381,65216.0,65215.0,0.62970835]
[1718921283969,0.15918381,65216.0,65215.0,0.62970835]
[1718921284426,0.16018381,65216.0,65215.0,0.62970835]
[1718921284581,0.08548381,65216.0,65215.0,0.62970835]
[1718921284790,0.16018381,65216.0,65215.0,0.62970835]
[1718921285621,0.15918381,65216.0,65215.0,0.62970835]
[1718921286228,0.15818688,65216.0,65215.0,0.62970835]
[1718921286590,0.15918688,65216.0,65215.0,0.62970835]
[1718921286999,0.15818688,65216.0,65215.0,0.62970835]
[1718921287461,0.15918688,65216.0,65215.0,0.62970835]
[1718921289338,0.14963098,65216.0,65215.0,0.62970835]
[1718921289542,0.15918688,65216.0,65215.0,0.62970835]
[1718921290754,0.08448688,65216.0,65215.0,0.62970835]
[1718921290922,0.08448688,65216.0,65215.0,0.63970835]
[1718921292713,0.08448728,65216.0,65215.0,0.63970835]
[1718921293103,0.08348728,65216.0,65215.0,0.63970835]
[1718921293443,0.08448728,65216.0,65215.0,0.63970835]
[1718921293870,0.08348728,65216.0,65215.0,0.63970835]
[1718921294297,0.08448728,65216.0,65215.0,0.63970835]
[1718921294729,0.08448728,65216.0,65215.0,0.62970835]
[1718921295101,0.08448728,65216.0,65215.0,0.63970835]
[1718921295699,0.08448731,65216.0,65215.0,0.63970835]
[1718921298435,0.08448731,65216.0,65215.0,0.62970835]
[1718921299018,0.08448734,65216.0,65215.0,0.62970835]
[1718921299774,0.08448734,65216.0,65215.0,0.63970835]
[1718921302000,0.08448735,65216.0,65215.0,0.63970835]
[1718921302593,0.05649564,65216.0,65215.0,0.63970835]
[1718921303607,0.05549564,65216.0,65215.0,0.62970835]
[1718921303948,0.05649564,65216.0,65215.0,0.62970835]
[1718921304189,0.05649564,65216.0,65215.0,0.63970835]
[1718921304755,0.05549564,65216.0,65215.0,0.63970835]
[1718921305158,0.05549564,65216.0,65215.0,0.64170835]
[1718921305398,0.05549567,65216.0,65215.0,0.64170835]
[1718921306236,0.05549567,65216.0,65215.0,0.5685884]
[1718921307235,0.05549567,65216.0,65215.0,0.5675884]
[1718921307853,0.05549567,65216.0,65215.0,0.5655884]
[1718921308246,0.05549567,65216.0,65215.0,0.5665884]
[1718921308751,0.05549567,65216.0,65215.0,0.5685884]
[1718921309453,0.05549567,65216.0,65215.0,0.5695884]
[1718921309688,0.05549567,65216.0,65215.0,0.63744724]
[1718921311734,0.05549597,65216.0,65215.0,0.63744724]
[1718921312728,0.35106674,65235.0,65230.0,0.06610148]
[1718921312941,0.04411457,65243.0,65230.0,0.06610148]
[1718921312942,0.0747,65231.0,65230.0,0.06610148]
[1718921314170,0.0747,65231.0,65230.0,0.06710148]
[1718921315027,0.0747,65231.0,65230.0,0.001]
[1718921315215,0.0747,65231.0,65230.0,0.002]
[1718921315793,0.0757,65231.0,65230.0,0.003]
[1718921316201,0.0757,65231.0,65230.0,0.002]
[1718921316402,0.0767,65231.0,65230.0,0.003]
[1718921316808,0.0777,65231.0,65230.0,0.004]
[1718921317004,0.0767,65231.0,65230.0,0.003]
[1718921317208,0.0767,65231.0,65230.0,0.004]
[1718921317596,0.0777,65231.0,65230.0,0.004]
[1718921322074,0.003,65231.0,65230.0,0.004]
[1718921322259,0.0777,65231.0,65230.0,0.004]
[1718921324260,0.10518758,65231.0,65230.0,0.004]
[1718921325315,0.14928391,65231.0,65230.0,0.004]
[1718921327033,0.15884072,65231.0,65230.0,0.13719001]
[1718921327266,0.15884072,65231.0,65230.0,0.09522728]
[1718921327783,0.08414072,65231.0,65230.0,0.11522728]
[1718921327985,0.15884072,65231.0,65230.0,0.11522728]
[1718921331066,0.15884101,65231.0,65230.0,0.11522728]
[1718921334179,0.1588415,65231.0,65230.0,0.11522728]
[1718921335180,0.0841415,65231.0,65230.0,0.2677884]
[1718921335401,0.1588415,65231.0,65230.0,0.5661884]
[1718921336376,0.0811415,65231.0,65230.0,0.5621884]
[1718921336873,0.0821415,65231.0,65230.0,0.5621884]
[1718921337185,0.07158391,65231.0,65230.0,0.5621884]
[1718921337377,0.08114178,65231.0,65230.0,0.5621884]
[1718921337671,0.01055787,65231.0,65230.0,0.5631344]
[1718921339000,0.00955787,65231.0,65230.0,0.5631344]
[1718921339367,0.0322063,65231.0,65230.0,0.5631344]
[1718921339789,0.0322063,65231.0,65230.0,0.61308158]
[1718921340013,0.0332063,65231.0,65230.0,0.61308158]
[1718921340754,0.03320167,65231.0,65230.0,0.61308158]
[1718921342298,0.03320167,65231.0,65230.0,0.5631344]
[1718921343788,0.003,65231.0,65230.0,0.5631344]
[1718921343990,0.03322463,65231.0,65230.0,0.5631344]
[1718921346906,0.01255733,65231.0,65230.0,0.5631344]
[1718921347097,0.03323032,65231.0,65230.0,0.5631344]
[1718921347301,0.05712597,65231.0,65230.0,0.63044784]
[1718921348696,0.05512597,65231.0,65230.0,0.63044784]
[1718921349106,0.05412597,65231.0,65230.0,0.63444784]
[1718921349694,0.05412597,65231.0,65230.0,0.63644784]
[1718921350065,0.02389565,65231.0,65230.0,0.63644784]
[1718921350282,0.02389565,65231.0,65230.0,0.63044784]
[1718921350283,0.05407247,65231.0,65230.0,0.63044784]
[1718921350482,0.05407247,65231.0,65230.0,0.64044784]
[1718921350743,0.05407247,65231.0,65230.0,0.75244784]
[1718921352196,0.05407247,65231.0,65230.0,0.77544784]
[1718921353308,0.02389565,65231.0,65230.0,0.77544784]
[1718921353497,0.05424835,65231.0,65230.0,0.85172956]
[1718921353703,0.05419808,65231.0,65230.0,0.85172956]
[1718921356449,0.02384538,65231.0,65230.0,0.85172956]
[1718921356651,0.05418057,65231.0,65230.0,0.85172956]
[1718921356825,0.05418057,65231.0,65230.0,1.05372956]
[1718921357267,0.05418057,65231.0,65230.0,0.85172956]
[1718921357473,0.05418057,65231.0,65230.0,1.05372956]
[1718921359252,0.05418057,65231.0,65230.0,1.15372956]
[1718921359667,0.05426826,65231.0,65230.0,1.15372956]
[1718921360942,0.03042288,65231.0,65230.0,1.15372956]
[1718921362282,0.03042288,65231.0,65230.0,0.95172956]
[1718921362693,0.04490872,65234.0,65233.0,0.09610148]
[1718921362900,0.03347351,65234.0,65233.0,0.5390626]
[1718921363097,0.03347351,65234.0,65233.0,0.6390626]
[1718921363715,0.03347351,65234.0,65233.0,0.6470626]
[1718921363918,0.03347351,65234.0,65233.0,0.75363106]
[1718921364995,0.03347351,65234.0,65233.0,0.75963106]
[1718921365197,0.03347351,65234.0,65233.0,0.78475686]
[1718921365792,0.04627472,65235.0,65234.0,0.02]
[1718921366011,0.07945645,65235.0,65234.0,0.74329106]
[1718921366461,0.07945645,65235.0,65234.0,0.76841686]
[1718921366810,0.07945645,65235.0,65234.0,0.77441686]
[1718921367010,0.00862,65242.0,65241.0,0.12122728]
[1718921367217,0.00862,65242.0,65241.0,0.72227012]
[1718921368634,0.00862,65242.0,65241.0,0.72222961]
[1718921369007,0.00862,65242.0,65241.0,0.72622961]
[1718921369413,0.00862,65242.0,65241.0,0.83122961]
[1718921369630,0.00862,65242.0,65241.0,0.93455257]
[1718921370126,0.00862,65242.0,65241.0,0.85985257]
[1718921377032,0.02915007,65242.0,65241.0,0.85985257]
[1718921378490,0.02842552,65242.0,65241.0,0.85985257]
[1718921381909,0.02843336,65242.0,65241.0,0.85985257]
[1718921382213,0.02843335,65242.0,65241.0,0.85985257]
[1718921382603,0.02843335,65242.0,65241.0,0.85585257]
[1718921382809,0.02843335,65242.0,65241.0,0.86085257]
[1718921383217,0.02843335,65242.0,65241.0,0.87485257]
[1718921383358,0.02843335,65242.0,65241.0,0.89785257]
[1718921383588,0.02843335,65242.0,65241.0,0.88385257]
[1718921383782,0.02843335,65242.0,65241.0,0.89785257]
[1718921383984,0.02843335,65242.0,65241.0,0.97255257]
[1718921384241,0.02843335,65242.0,65241.0,0.95855257]
[1718921384441,0.02843335,65242.0,65241.0,0.96255257]
[1718921384886,0.00862,65242.0,65241.0,0.96255257]
[1718921385013,0.02895137,65242.0,65241.0,0.96255257]
[1718921385216,0.02895137,65242.0,65241.0,0.94855257]
[1718921385602,0.02895137,65242.0,65241.0,0.96255257]
[1718921386213,0.02895137,65242.0,65241.0,0.97655257]
[1718921387269,0.02895137,65242.0,65241.0,1.07655257]
[1718921388202,0.02895137,65242.0,65241.0,0.96255257]
[1718921388203,0.02860507,65242.0,65241.0,0.96255257]
[1718921388553,0.02860507,65242.0,65241.0,0.97655257]
[1718921388973,0.02860507,65242.0,65241.0,1.17855257]
[1718921389212,0.02860507,65242.0,65241.0,1.06255257]
[1718921389615,0.02860507,65242.0,65241.0,1.07655257]
[1718921391414,0.02849155,65242.0,65241.0,1.07655257]
[1718921394688,0.02865781,65242.0,65241.0,1.07655257]
[1718921397273,0.00862,65242.0,65241.0,1.07655257]
[1718921397472,0.02865044,65242.0,65241.0,1.07655257]
[1718921397855,0.02867997,65242.0,65241.0,1.07655257]
[1718921401035,0.1551395,65273.0,65260.0,0.06610148]
[1718921401180,0.1551395,65273.0,65264.0,0.0251258]
[1718921401181,0.06607813,65272.0,65264.0,0.0251258]
[1718921401382,0.0747,65265.0,65264.0,0.0251258]
[1718921401585,0.09509813,65265.0,65264.0,0.0251258]
[1718921402827,0.02039813,65265.0,65264.0,0.0251258]
[1718921402987,0.09509813,65265.0,65264.0,0.0251258]
[1718921404240,0.09170028,65265.0,65264.0,0.0251258]
[1718921405060,0.01700028,65265.0,65264.0,0.0251258]
[1718921405262,0.09170028,65265.0,65264.0,0.0251258]
[1718921406075,0.02456772,65275.0,65264.0,0.0174458]
[1718921406276,0.0747,65265.0,65264.0,0.03291494]
[1718921406479,0.09162503,65265.0,65264.0,0.0174458]
[1718921407283,0.0747,65265.0,65264.0,0.0174458]
[1718921407488,0.09653622,65265.0,65264.0,0.0174458]
[1718921408641,0.09653622,65265.0,65264.0,0.0184458]
[1718921408831,0.09653622,65265.0,65264.0,0.0194458]
[1718921409048,0.09653622,65265.0,65264.0,0.0184458]
[1718921409878,0.09653622,65265.0,65264.0,0.0174458]
[1718921410507,0.0747,65265.0,65264.0,0.0174458]
[1718921410797,0.09648904,65265.0,65264.0,0.0174458]
[1718921411198,0.08880904,65265.0,65264.0,0.0174458]
[1718921413713,0.06702,65265.0,65264.0,0.0174458]
[1718921413913,0.08900918,65265.0,65264.0,0.0174458]
[1718921417058,0.08894141,65265.0,65264.0,0.0174458]
[1718921419301,0.11627758,65265.0,65264.0,0.0174458]
[1718921420128,0.09435617,65265.0,65264.0,0.0174458]
[1718921420322,0.11621879,65265.0,65264.0,0.0174458]
[1718921421545,0.11621879,65265.0,65263.0,0.0174458]
[1718921421775,0.02186262,65264.0,65263.0,0.0174458]
[1718921421980,0.02186262,65264.0,65262.0,0.06610148]
[1718921422202,0.02194671,65263.0,65262.0,0.06610148]
[1718921422331,0.02194671,65263.0,65259.0,0.08354728]
[1718921422527,0.0747,65261.0,65259.0,0.0174458]
[1718921422730,0.02194671,65260.0,65259.0,0.0174458]
[1718921423409,0.02190263,65260.0,65259.0,0.0174458]
[1718921423564,0.02190263,65260.0,65259.0,0.10350677]
[1718921424084,0.02190263,65260.0,65259.0,0.08354728]
[1718921424252,0.02190263,65260.0,65259.0,0.0184458]
[1718921424658,0.02190263,65260.0,65259.0,0.08454728]
[1718921424862,0.02190263,65260.0,65259.0,0.10450677]
[1718921425074,0.02190263,65260.0,65259.0,0.08454728]
[1718921425276,0.02190263,65260.0,65259.0,0.0184458]
[1718921425553,0.02190263,65260.0,65259.0,0.08454728]
[1718921425754,0.02190263,65260.0,65259.0,0.0184458]
[1718921425871,0.02190263,65260.0,65259.0,0.10450677]
[1718921426074,0.02190263,65260.0,65259.0,0.08454728]
[1718921426297,0.02190263,65260.0,65259.0,0.10450677]
[1718921426514,0.0746,65261.0,65260.0,0.06610148]
[1718921426710,0.09678981,65261.0,65260.0,0.06610148]
[1718921428230,0.09678981,65261.0,65259.0,0.0174458]
[1718921428485,0.02218981,65260.0,65259.0,0.0174458]
[1718921428684,0.02218981,65260.0,65259.0,0.08354728]
[1718921429558,0.09678981,65260.0,65259.0,0.08354728]
[1718921429760,0.09672938,65260.0,65259.0,0.0174458]
[1718921429877,0.11885876,65260.0,65259.0,0.10350677]
[1718921430077,0.11885876,65260.0,65259.0,0.08354728]
[1718921430285,0.11885876,65260.0,65259.0,0.10350677]
[1718921430481,0.11885876,65260.0,65259.0,0.08354728]
[1718921430762,0.11885876,65260.0,65259.0,0.10350677]
[1718921430962,0.11885876,65260.0,65259.0,0.08354728]
[1718921431365,0.11885876,65260.0,65259.0,0.0174458]
[1718921431570,0.13320836,65260.0,65259.0,0.0174458]
[1718921431853,0.13320836,65260.0,65259.0,0.08354728]
[1718921432839,0.13339781,65260.0,65259.0,0.08354728]
[1718921433239,0.13339781,65260.0,65259.0,0.0174458]
[1718921433640,0.05879781,65260.0,65259.0,0.0174458]
[1718921435890,0.05879781,65260.0,65259.0,0.10350677]
[1718921436090,0.05904879,65260.0,65259.0,0.0174458]
[1718921436292,0.05904879,65260.0,65259.0,0.10350677]
[1718921436750,0.05904879,65260.0,65259.0,0.0174458]
[1718921436965,0.05904879,65260.0,65259.0,0.10350677]
[1718921439380,0.0589535,65260.0,65259.0,0.10350677]
[1718921442496,0.05906639,65260.0,65259.0,0.10350677]
[1718921444407,0.03693701,65260.0,65259.0,0.10350677]
[1718921445585,0.03692566,65260.0,65259.0,0.10350677]
[1718921448874,0.03700696,65260.0,65259.0,0.10350677]
[1718921451880,0.0143496,65260.0,65259.0,0.10350677]
[1718921452081,0.02265854,65260.0,65259.0,0.10350677]
[1718921452282,0.03721254,65260.0,65259.0,0.10350677]
[1718921455145,0.03759166,65260.0,65259.0,0.10350677]
[1718921457550,0.03760417,65260.0,65259.0,0.10350677]
[1718921458444,0.014554,65260.0,65259.0,0.10350677]
[1718921458624,0.03757262,65260.0,65259.0,0.10350677]
[1718921461680,0.03803774,65260.0,65259.0,0.10350677]
[1718921463926,0.03803774,65260.0,65259.0,0.10445277]
[1718921464886,0.03797543,65260.0,65259.0,0.10445277]
[1718921471105,0.014554,65260.0,65259.0,0.10445277]
[1718921471225,0.03821451,65260.0,65259.0,0.10445277]
[1718921471429,0.02366051,65260.0,65259.0,0.10445277]
[1718921471669,0.03838118,65260.0,65259.0,0.10445277]
[1718921474332,0.01472067,65260.0,65259.0,0.10445277]
[1718921474579,0.03870261,65260.0,65259.0,0.10445277]
[1718921474772,0.02398194,65260.0,65259.0,0.10445277]
[1718921474921,0.03870261,65260.0,65259.0,0.10445277]
[1718921476144,0.03911014,65260.0,65259.0,0.10445277]
[1718921477596,0.03909694,65260.0,65259.0,0.10445277]
[1718921480670,0.01472067,65260.0,65259.0,0.10445277]
[1718921480874,0.03876939,65260.0,65259.0,0.10445277]
[1718921481072,0.02404872,65260.0,65259.0,0.10445277]
[1718921481272,0.03876939,65260.0,65259.0,0.10445277]
[1718921481675,0.03876939,65260.0,65259.0,0.41851389]
[1718921482127,0.03876939,65260.0,65259.0,0.35762589]
[1718921482330,0.03876939,65260.0,65248.0,0.07628172]
[1718921482331,0.1,65252.0,65231.0,0.1]
[1718921482502,0.1,65252.0,65241.0,0.15256112]
[1718921482503,0.02404872,65251.0,65241.0,0.15256112]
[1718921482698,0.02404872,65250.0,65241.0,0.15256112]
[1718921483026,0.02404872,65249.0,65242.0,0.02271611]
[1718921483238,0.02404872,65248.0,65243.0,0.15256112]
[1718921483452,0.02404872,65247.0,65243.0,0.15256112]
[1718921483628,0.02404872,65246.0,65243.0,0.15256112]
[1718921483835,0.01467195,65246.0,65243.0,0.17527723]
[1718921484034,0.02278734,65245.0,65243.0,0.17527723]
[1718921484249,0.01467195,65246.0,65243.0,0.17527723]
[1718921484250,0.02278734,65244.0,65243.0,0.17527723]
[1718921484455,0.02278734,65244.0,65243.0,0.18927723]
[1718921484829,0.17605734,65244.0,65243.0,0.20327723]
[1718921485231,0.1907228,65244.0,65243.0,0.49347723]
[1718921485631,0.1907228,65244.0,65243.0,0.47947723]